bitfinex-derivatives/quotes_BTCF0:USTF0_20250222
["timestamp","ask_amount","ask_price","bid_price","bid_amount"]
[1740188678736,0.36417551,96464.0,96463.0,0.3041499]
[1740188682139,0.20867462,96464.0,96463.0,0.3041499]
[1740188685538,0.20867462,96464.0,96463.0,0.0968]
[1740188685848,0.20867462,96464.0,96463.0,0.3041499]
[1740188690538,0.1983478,96464.0,96463.0,0.3041499]
[1740188712350,0.1983478,96464.0,96463.0,0.001]
[1740188712557,0.1983478,96464.0,96457.0,0.24699848]
[1740188712558,0.2073607,96458.0,96457.0,0.24699848]
[1740188712757,0.5681607,96458.0,96457.0,0.24699848]
[1740188712954,0.6315607,96458.0,96457.0,0.23665277]
[1740188714953,0.6325607,96458.0,96457.0,0.23665277]
[1740188717456,0.6325607,96458.0,96449.0,0.2073796]
[1740188717457,0.2073671,96455.0,96449.0,0.2073796]
[1740188717953,0.2073671,96455.0,96448.0,0.0518453]
[1740188718160,0.2073671,96455.0,96449.0,0.2073792]
[1740188718459,0.2073671,96455.0,96445.0,0.0518471]
[1740188718665,0.2073671,96455.0,96448.0,0.2073804]
[1740188718959,0.2073671,96455.0,96454.0,0.00115543]
[1740188721354,0.2073671,96455.0,96454.0,0.20852473]
[1740188722150,0.0309,96458.0,96457.0,0.2073628]
[1740188722354,0.2382607,96458.0,96457.0,0.2073628]
[1740188722855,0.0518413,96456.0,96454.0,0.00115543]
[1740188723059,0.2073671,96455.0,96454.0,0.00115543]
[1740188723268,0.2382671,96455.0,96454.0,0.00115543]
[1740188724562,0.2382671,96455.0,96454.0,0.00015543]
[1740188724957,0.2382671,96455.0,96454.0,0.00115543]
[1740188725864,0.3421871,96455.0,96454.0,0.00115543]
[1740188731567,0.35522,96455.0,96399.0,0.2196]
[1740188731764,0.2074273,96427.0,96424.0,0.2074338]
[1740188731966,0.2074273,96427.0,96423.0,0.05341419]
[1740188731967,0.2074273,96427.0,96423.0,0.00155549]
[1740188732365,0.2074338,96424.0,96423.0,0.20899049]
[1740188732872,0.2004338,96424.0,96423.0,0.20899049]
[1740188733370,0.1934338,96424.0,96423.0,0.20899049]
[1740188734568,0.1944338,96424.0,96423.0,0.21599049]
[1740188734960,0.1954338,96424.0,96423.0,0.22099049]
[1740188736171,0.1954338,96424.0,96423.0,0.01355549]
[1740188737173,0.5562338,96424.0,96423.0,0.01355549]
[1740188739964,0.3628,96424.0,96423.0,0.22099139]
[1740188740166,0.2094338,96424.0,96423.0,0.01355549]
[1740188740369,0.5702338,96424.0,96423.0,0.01355549]
[1740188740567,0.5702338,96424.0,96423.0,0.22099139]
[1740188741671,0.002,96424.0,96423.0,0.22099139]
[1740188743270,0.2094338,96424.0,96423.0,0.22099139]
[1740188743472,0.002,96424.0,96423.0,0.22099139]
[1740188743672,0.2094338,96424.0,96423.0,0.22099139]
[1740188743874,0.002,96424.0,96423.0,0.22099139]
[1740188747973,0.002,96424.0,96423.0,0.2194359]
[1740188751980,0.002,96424.0,96423.0,0.23564986]
[1740188752373,0.2094338,96424.0,96423.0,0.23564986]
[1740188752974,0.2094338,96424.0,96423.0,0.2194359]
[1740188758386,0.2094338,96424.0,96423.0,0.2515359]
[1740188764780,0.2094338,96424.0,96423.0,0.2194359]
[1740188764979,0.2412338,96424.0,96423.0,0.2194359]
[1740188769486,0.2412338,96424.0,96423.0,0.012]
[1740188771184,0.2412338,96424.0,96423.0,0.011]
[1740188772691,0.2402338,96424.0,96423.0,0.01]
[1740188773377,0.2392338,96424.0,96423.0,0.004]
[1740188773580,0.2392338,96424.0,96423.0,0.007]
[1740188776277,0.2392338,96424.0,96423.0,0.005]
[1740188776895,0.2392338,96424.0,96423.0,0.003]
[1740188781298,0.2392338,96424.0,96423.0,0.002]
[1740188781484,0.2412338,96424.0,96423.0,0.002]
[1740188782194,0.0338,96424.0,96414.0,0.00015553]
[1740188782389,0.5682531,96415.0,96414.0,0.00015553]
[1740188783286,0.6008531,96415.0,96414.0,0.00215553]
[1740188783500,0.6008531,96415.0,96414.0,0.00315553]
[1740188788898,0.2074639,96410.0,96409.0,0.01252886]
[1740188789897,0.2064639,96410.0,96409.0,0.01252886]
[1740188790199,0.2114639,96410.0,96409.0,0.01252886]
[1740188790497,0.0518655,96411.0,96405.0,0.0312]
[1740188790689,0.2074725,96406.0,96405.0,0.0312]
[1740188791291,0.2064725,96406.0,96405.0,0.0312]
[1740188792696,0.2174725,96406.0,96405.0,0.0312]
[1740188793601,0.22784234,96406.0,96405.0,0.0312]
[1740188794092,0.2074768,96404.0,96403.0,0.00155578]
[1740188796299,0.2114768,96404.0,96403.0,0.00155578]
[1740188796492,0.2174768,96404.0,96403.0,0.00155578]
[1740188806696,0.2074811,96402.0,96401.0,0.0321]
[1740188807802,0.5732811,96402.0,96401.0,0.0321]
[1740188809105,0.5762811,96402.0,96401.0,0.0321]
[1740188809997,0.7296,96402.0,96400.0,0.10010422]
[1740188810202,0.2399833,96401.0,96400.0,0.10010422]
[1740188811905,0.2399833,96401.0,96400.0,0.11632586]
[1740188812209,0.2429833,96401.0,96400.0,0.11632586]
[1740188812805,0.6087833,96401.0,96400.0,0.11632586]
[1740188814499,0.5762833,96401.0,96400.0,0.11632586]
[1740188814696,0.5762833,96401.0,96400.0,0.10010422]
[1740188816310,0.62674396,96401.0,96400.0,0.10010422]
[1740188820619,0.26594396,96401.0,96400.0,0.10010422]
[1740188820806,0.98754396,96401.0,96400.0,0.10010422]
[1740188825109,1.09146396,96401.0,96400.0,0.10010422]
[1740188825312,1.19650083,96401.0,96400.0,0.10010422]
[1740188825515,0.88509753,96401.0,96400.0,0.30758962]
[1740188825716,0.73178083,96401.0,96400.0,0.30758962]
[1740188825915,0.73178083,96401.0,96400.0,0.37068962]
[1740188826110,0.52429753,96401.0,96400.0,0.37068962]
[1740188826312,0.73178083,96401.0,96400.0,0.37068962]
[1740188826713,0.52429753,96401.0,96400.0,0.37068962]
[1740188827215,0.73178083,96401.0,96400.0,0.37068962]
[1740188829125,0.52429753,96401.0,96400.0,0.37068962]
[1740188829912,0.3688,96401.0,96400.0,0.37068962]
[1740188832120,0.008,96401.0,96400.0,0.37068962]
[1740188833416,0.008,96401.0,96400.0,0.73148962]
[1740188835613,0.3608,96415.0,96400.0,0.52400422]
[1740188835826,0.2074474,96418.0,96412.0,0.5682596]
[1740188836130,0.15549753,96419.0,96412.0,0.5682596]
[1740188836335,0.15549753,96419.0,96412.0,0.6612596]
[1740188836521,0.15549753,96419.0,96412.0,0.4638]
[1740188836828,0.15549753,96419.0,96418.0,0.2074467]
[1740188837024,0.36294203,96419.0,96418.0,0.2074467]
[1740188837934,0.36994203,96419.0,96418.0,0.2084467]
[1740188838122,0.2144445,96419.0,96418.0,0.2084467]
[1740188839531,0.2214445,96419.0,96418.0,0.2094467]
[1740188845931,0.2214445,96419.0,96418.0,0.002]
[1740188846230,0.2542445,96419.0,96418.0,0.002]
[1740188846432,0.4076,96419.0,96400.0,0.10066422]
[1740188846637,0.2074833,96402.0,96401.0,0.4031074]
[1740188848339,0.2114833,96402.0,96401.0,0.4031074]
[1740188849140,0.2144833,96402.0,96401.0,0.4031074]
[1740188850337,0.22512417,96402.0,96401.0,0.4031074]
[1740188851326,0.22512417,96402.0,96401.0,0.3512377]
[1740188851528,0.25582417,96402.0,96401.0,0.3512377]
[1740188851731,0.25582417,96402.0,96400.0,0.10010422]
[1740188851732,0.04834087,96402.0,96400.0,0.10010422]
[1740188851928,0.2074833,96401.0,96400.0,0.30758962]
[1740188852735,0.2074833,96401.0,96400.0,0.10010422]
[1740188852930,0.2074833,96401.0,96400.0,0.30758962]
[1740188853131,0.2104833,96401.0,96400.0,0.30758962]
[1740188854040,0.2144833,96401.0,96400.0,0.30758962]
[1740188856232,0.2144833,96401.0,96400.0,0.10010422]
[1740188859349,0.2144833,96401.0,96400.0,0.0792041]
[1740188861946,0.2144833,96401.0,96400.0,0.07304857]
[1740188868853,0.9360833,96401.0,96400.0,0.07304857]
[1740188869744,0.7286,96401.0,96369.0,0.24799914]
[1740188870054,0.7286,96401.0,96374.0,0.0657]
[1740188870055,0.2075393,96375.0,96374.0,0.0657]
[1740188871256,0.2075393,96375.0,96374.0,0.2732414]
[1740188871754,0.2085393,96375.0,96374.0,0.2732414]
[1740188872358,0.21876237,96375.0,96374.0,0.0657]
[1740188872556,0.21876237,96375.0,96374.0,0.2732414]
[1740188872956,0.22076237,96375.0,96374.0,0.2732414]
[1740188873858,0.22076237,96375.0,96374.0,0.0657]
[1740188875250,0.22076237,96375.0,96360.0,0.0518928]
[1740188875251,0.2075586,96366.0,96360.0,0.0518928]
[1740188875448,0.2075586,96366.0,96365.0,0.20771642]
[1740188876456,0.2075586,96366.0,96365.0,0.24271642]
[1740188877653,0.2075586,96366.0,96365.0,0.24471642]
[1740188894659,0.051887,96371.0,96367.0,0.2594433]
[1740188894660,0.2075545,96368.0,96367.0,0.2594433]
[1740188894861,0.2075524,96370.0,96369.0,0.20755]
[1740188895360,0.0518885,96369.0,96367.0,0.2075558]
[1740188895769,0.2075564,96368.0,96367.0,0.2075558]
[1740188896471,0.2075564,96368.0,96367.0,0.2095558]
[1740188896674,0.20755,96370.0,96369.0,0.20755]
[1740188897463,0.2075497,96371.0,96370.0,0.2594342]
[1740188897675,0.2075497,96371.0,96370.0,0.2075468]
[1740188898268,0.18579753,96377.0,96369.0,0.001]
[1740188898471,0.2594392,96371.0,96370.0,0.2075489]
[1740188898669,0.2594392,96371.0,96370.0,0.2085489]
[1740188898868,0.2075522,96371.0,96370.0,0.2085489]
[1740188904477,0.2075522,96371.0,96370.0,0.001]
[1740188904682,0.2075522,96371.0,96370.0,0.20855]
[1740188905876,0.15549753,96373.0,96370.0,0.001]
[1740188906088,0.2075474,96372.0,96371.0,0.2594325]
[1740188907081,0.2075474,96372.0,96371.0,0.2075457]
[1740188908579,0.25901621,96372.0,96371.0,0.2075457]
[1740188912375,0.05146881,96372.0,96371.0,0.2075457]
[1740188912979,0.001,96372.0,96371.0,0.2075457]
[1740188914187,0.2085457,96372.0,96371.0,0.2075457]
[1740188918496,0.001,96372.0,96371.0,0.2075457]
[1740188918786,0.2085457,96372.0,96371.0,0.2075457]
[1740188919485,0.001,96372.0,96371.0,0.2075457]
[1740188933588,0.001,96372.0,96371.0,0.2406457]
[1740188938186,0.2085457,96372.0,96371.0,0.2406457]
[1740188940591,0.001,96372.0,96371.0,0.2406457]
[1740188941096,0.2085457,96372.0,96371.0,0.2406457]
[1740188952104,0.20701211,96372.0,96371.0,0.2406457]
[1740188955806,0.2594287,96374.0,96373.0,0.2075436]
[1740188957102,0.2604287,96374.0,96373.0,0.2075436]
[1740188961008,0.2085432,96374.0,96373.0,0.2075436]
[1740188961398,0.001,96374.0,96373.0,0.2075436]
[1740188966610,0.2085414,96374.0,96373.0,0.2075436]
[1740188971411,0.2085414,96374.0,96373.0,0.5683436]
[1740188973418,0.001,96374.0,96369.0,0.18605834]
[1740188973619,0.20755,96370.0,96369.0,0.39360964]
[1740188973915,0.20755,96370.0,96369.0,0.30931842]
[1740188974809,0.20755,96370.0,96369.0,0.31031842]
[1740188977826,0.20755,96370.0,96369.0,0.001]
[1740188981026,0.20755,96370.0,96369.0,0.2085522]
[1740188981725,0.20755,96370.0,96369.0,0.22477704]
[1740188981927,0.20755,96370.0,96369.0,0.01722484]
[1740188984333,0.20755,96370.0,96369.0,0.22477704]
[1740188989938,0.20755,96370.0,96369.0,0.001]
[1740188990738,0.20755,96370.0,96369.0,0.2085522]
[1740188998542,0.01037632,96377.0,96376.0,0.2075371]
[1740188998745,0.2075321,96379.0,96378.0,0.2594137]
[1740188999247,0.36322873,96381.0,96380.0,0.2075285]
[1740188999745,0.37379306,96381.0,96380.0,0.2075285]
[1740189000141,0.21809233,96381.0,96380.0,0.2075285]
[1740189000446,0.15570073,96383.0,96380.0,0.01]
[1740189000641,0.00015562,96384.0,96383.0,0.207522]
[1740189000847,0.0518739,96396.0,96383.0,0.01]
[1740189001055,0.1157438,96395.0,96389.0,0.2075091]
[1740189001248,0.39410404,96390.0,96389.0,0.2075091]
[1740189001548,0.39410404,96390.0,96389.0,0.3014091]
[1740189002748,0.40475576,96390.0,96389.0,0.3014091]
[1740189002947,0.40975576,96390.0,96389.0,0.3014091]
[1740189003350,0.41675576,96390.0,96389.0,0.3024091]
[1740189004650,0.23015872,96390.0,96389.0,0.3024091]
[1740189005943,0.23015872,96390.0,96389.0,0.0949]
[1740189006251,0.23015872,96390.0,96389.0,0.001]
[1740189010350,0.02265172,96390.0,96378.0,0.21713686]
[1740189010554,0.2075306,96379.0,96378.0,0.18563686]
[1740189010947,0.2689306,96379.0,96378.0,0.18563686]
[1740189011554,0.2075328,96378.0,96377.0,0.18563686]
[1740189012751,0.2095328,96378.0,96377.0,0.18563686]
[1740189013340,0.2125328,96378.0,96377.0,0.18563686]
[1740189015349,0.2594236,96376.0,96375.0,0.2075372]
[1740189015651,0.259429,96374.0,96373.0,0.2075416]
[1740189018554,0.261429,96374.0,96373.0,0.2075416]
[1740189022952,0.261429,96374.0,96365.0,0.37155562]
[1740189022953,0.0538854,96374.0,96365.0,0.37155562]
[1740189023258,0.2075673,96362.0,96361.0,0.0317]
[1740189023565,0.2075673,96362.0,96361.0,0.2720694]
[1740189024459,0.2075673,96362.0,96361.0,0.2740694]
[1740189024953,0.2075673,96362.0,96361.0,0.2095694]
[1740189025152,0.2384673,96362.0,96361.0,0.2095694]
[1740189025549,0.2384673,96362.0,96361.0,0.2125694]
[1740189026054,0.2075673,96362.0,96361.0,0.2125694]
[1740189028752,0.2075673,96362.0,96361.0,0.2439694]
[1740189034149,0.2075673,96362.0,96361.0,0.0364]
[1740189036258,0.0518913,96363.0,96353.0,0.35067138]
[1740189036454,0.2075845,96354.0,96353.0,0.31641982]
[1740189036764,0.2075866,96353.0,96350.0,0.39322846]
[1740189036968,0.2406866,96353.0,96350.0,0.18623686]
[1740189037151,0.2406866,96353.0,96350.0,0.18563686]
[1740189037356,0.2396866,96353.0,96350.0,0.18563686]
[1740189037664,0.2376866,96353.0,96350.0,0.18563686]
[1740189037866,0.2376866,96353.0,96347.0,0.21723686]
[1740189038253,0.2376866,96353.0,96342.0,0.25806258]
[1740189038254,0.0462008,96353.0,96342.0,0.24235139]
[1740189038459,0.5684082,96343.0,96342.0,0.16945356]
[1740189038655,0.5684082,96343.0,96342.0,0.06253001]
[1740189038959,0.6293082,96343.0,96342.0,0.06253001]
[1740189039360,0.6283082,96343.0,96342.0,0.06253001]
[1740189040056,0.6383082,96343.0,96342.0,0.06253001]
[1740189040256,0.6393082,96343.0,96342.0,0.05157521]
[1740189040857,0.7429082,96343.0,96342.0,0.05157521]
[1740189042256,0.7429082,96343.0,96342.0,0.02729521]
[1740189043864,0.7429082,96343.0,96327.0,0.42309241]
[1740189043865,0.3608,96343.0,96340.0,0.051903]
[1740189044060,0.001,96343.0,96342.0,0.2076103]
[1740189044262,0.2086082,96343.0,96342.0,0.2076103]
[1740189044559,0.001,96343.0,96342.0,0.2076103]
[1740189044965,0.2086082,96343.0,96342.0,0.2076103]
[1740189046163,0.2405082,96343.0,96342.0,0.2076103]
[1740189046467,0.2405082,96343.0,96335.0,0.2899273]
[1740189046468,0.2076233,96336.0,96335.0,0.2899273]
[1740189046670,0.2076233,96336.0,96335.0,0.2380254]
[1740189047164,0.2076233,96336.0,96335.0,0.0304]
[1740189047557,0.2076233,96336.0,96335.0,0.2380254]
[1740189047868,0.2076233,96336.0,96335.0,0.0304]
[1740189048968,0.2408233,96336.0,96335.0,0.2380254]
[1740189049567,0.2076233,96336.0,96335.0,0.2380254]
[1740189050067,0.4127031,96341.0,96335.0,0.0304]
[1740189050068,0.3608,96341.0,96335.0,0.0304]
[1740189050257,0.3608,96341.0,96338.0,0.2595187]
[1740189050258,0.2595284,96339.0,96338.0,0.2595187]
[1740189050757,0.0332,96345.0,96338.0,0.0519041]
[1740189050960,0.0519017,96345.0,96344.0,0.2075953]
[1740189052162,0.3114134,96345.0,96344.0,0.2075953]
[1740189052558,0.3114134,96345.0,96344.0,0.2715953]
[1740189052871,0.3134134,96345.0,96344.0,0.2715953]
[1740189053585,0.3134134,96345.0,96344.0,0.064]
[1740189053873,0.3144134,96345.0,96344.0,0.064]
[1740189054062,0.3144134,96345.0,96344.0,0.271606]
[1740189058670,0.3144134,96345.0,96344.0,0.064]
[1740189060084,0.3144134,96345.0,96344.0,0.271606]
[1740189063882,0.3144134,96345.0,96344.0,0.302106]
[1740189071780,0.3144134,96345.0,96344.0,0.269506]
[1740189072084,0.3144134,96345.0,96344.0,0.238106]
[1740189074382,0.3144134,96345.0,96344.0,0.207606]
[1740189081891,0.003,96345.0,96344.0,0.207606]
[1740189082090,0.2106039,96345.0,96344.0,0.238606]
[1740189083392,0.003,96345.0,96344.0,0.238606]
[1740189085187,0.2106039,96345.0,96344.0,0.238606]
[1740189085391,0.003,96345.0,96344.0,0.238606]
[1740189085594,0.2106039,96345.0,96344.0,0.238606]
[1740189086295,0.003,96345.0,96344.0,0.238606]
[1740189087592,0.0001557,96351.0,96350.0,0.2075931]
[1740189087894,0.0001557,96351.0,96350.0,0.5783931]
[1740189088095,0.0001557,96351.0,96350.0,0.6416931]
[1740189088788,0.2077466,96351.0,96350.0,0.6416931]
[1740189090200,0.2087466,96351.0,96350.0,0.6416931]
[1740189090592,0.2097466,96351.0,96350.0,0.2808931]
[1740189092201,0.2107466,96351.0,96350.0,0.2808931]
[1740189092402,0.2107466,96351.0,96350.0,0.2708931]
[1740189092587,0.2107466,96351.0,96350.0,0.2808931]
[1740189092794,0.2107466,96351.0,96350.0,0.2708931]
[1740189093095,0.2107466,96351.0,96350.0,0.2808931]
[1740189093302,0.2107466,96351.0,96350.0,0.2708931]
[1740189093699,0.2087466,96351.0,96350.0,0.2808931]
[1740189094000,0.2107466,96351.0,96350.0,0.2708931]
[1740189094296,0.2107466,96351.0,96350.0,0.2808931]
[1740189094697,0.2107466,96351.0,96350.0,0.2708931]
[1740189094897,0.2107466,96351.0,96350.0,0.2808931]
[1740189096105,0.2107466,96351.0,96350.0,0.2708931]
[1740189096304,0.2107466,96351.0,96350.0,0.2808931]
[1740189105207,0.2107466,96351.0,96350.0,0.51926794]
[1740189106118,0.2107466,96351.0,96350.0,0.52926794]
[1740189108608,0.2107466,96351.0,96350.0,0.2808931]
[1740189119519,0.0031557,96351.0,96350.0,0.2808931]
[1740189119718,0.2107466,96351.0,96350.0,0.2808931]
[1740189124016,0.2424466,96351.0,96350.0,0.2808931]
[1740189126029,0.2107466,96351.0,96350.0,0.2808931]
[1740189127526,0.2107466,96351.0,96350.0,0.52969966]
[1740189128329,0.2439466,96351.0,96350.0,0.52969966]
[1740189131229,0.2439466,96351.0,96350.0,0.2808931]
[1740189134537,0.2439466,96351.0,96350.0,0.59021152]
[1740189138746,0.2439466,96351.0,96350.0,0.2808931]
[1740189160167,0.2439466,96351.0,96350.0,0.6416931]
[1740189166767,0.2439466,96351.0,96350.0,0.2808931]
[1740189167174,0.2439466,96351.0,96350.0,0.6416931]
[1740189171977,0.2439466,96351.0,96350.0,0.95101152]
[1740189174474,0.2439466,96351.0,96350.0,0.59021152]
[1740189176182,0.2439466,96351.0,96350.0,0.2808931]
[1740189229302,0.2439466,96351.0,96350.0,0.3116931]
[1740189251419,0.39922499,96351.0,96350.0,0.3116931]
[1740189255829,0.2439466,96351.0,96350.0,0.3116931]
[1740189263726,0.2439466,96351.0,96350.0,0.3116931]
[1740189267737,0.39971798,96351.0,96350.0,0.3116931]
[1740189271434,0.2439466,96351.0,96350.0,0.3116931]
[1740189280737,0.2439466,96351.0,96350.0,0.2175931]
[1740189288152,0.0363557,96351.0,96350.0,0.01]
[1740189291557,0.19212708,96351.0,96350.0,0.01]
[1740189295350,0.0363557,96351.0,96350.0,0.01]
[1740189305965,0.0363557,96351.0,96350.0,0.3708]
[1740189312563,0.0363557,96351.0,96350.0,0.3608]
[1740189317470,0.08682999,96351.0,96350.0,0.3608]
[1740189322875,0.08682999,96351.0,96341.0,0.01]
[1740189323080,0.08682999,96351.0,96350.0,0.3608]
[1740189323979,0.08482999,96351.0,96350.0,0.3608]
[1740189324779,0.0343557,96351.0,96350.0,0.3608]
[1740189325867,0.0363557,96351.0,96348.0,0.0322]
[1740189326073,0.0363557,96351.0,96350.0,0.3608]
[1740189327080,0.0353557,96351.0,96350.0,0.3608]
[1740189328684,0.0343557,96351.0,96350.0,0.3608]
[1740189328884,0.0363557,96351.0,96350.0,0.3608]
[1740189332679,0.0363557,96351.0,96347.0,0.3608]
[1740189333683,0.0343557,96351.0,96347.0,0.391]
[1740189333885,0.0353557,96351.0,96347.0,0.391]
[1740189334085,0.0353557,96351.0,96347.0,0.4236]
[1740189334682,0.0343557,96351.0,96349.0,0.24882102]
[1740189334882,0.0343557,96351.0,96350.0,0.0332]
[1740189335686,0.0333557,96351.0,96350.0,0.0332]
[1740189335886,0.0363557,96351.0,96350.0,0.0332]
[1740189339687,0.0363557,96351.0,96350.0,0.394]
[1740189341896,0.0363557,96351.0,96350.0,0.0332]
[1740189342088,0.0363557,96351.0,96350.0,0.394]
[1740189342790,0.0363557,96351.0,96350.0,0.0332]
[1740189342989,0.0363557,96351.0,96350.0,0.394]
[1740189343390,0.0363557,96351.0,96350.0,0.0332]
[1740189343595,0.08682987,96351.0,96350.0,0.0332]
[1740189343899,0.08682987,96351.0,96350.0,0.394]
[1740189344993,0.29442077,96351.0,96350.0,0.6015931]
[1740189346295,0.29442077,96351.0,96350.0,0.2407931]
[1740189346692,0.2439466,96351.0,96350.0,0.2407931]
[1740189354503,0.2439466,96351.0,96350.0,0.42726304]
[1740189357905,0.2439466,96351.0,96350.0,0.2407931]
[1740189362203,0.39967706,96351.0,96350.0,0.2407931]
[1740189364409,0.39967706,96351.0,96350.0,0.0332]
[1740189364904,0.2075974,96348.0,96347.0,0.0628]
[1740189365104,0.0518988,96349.0,96346.0,0.00052]
[1740189365304,0.60478426,96351.0,96340.0,0.13295534]
[1740189365506,0.2076125,96341.0,96340.0,0.13295534]
[1740189365704,0.2076125,96341.0,96340.0,0.08361594]
[1740189365894,0.3005125,96341.0,96340.0,0.08361594]
[1740189366903,0.3005125,96341.0,96323.0,0.0943]
[1740189366904,0.2076233,96336.0,96328.0,0.30931842]
[1740189367107,0.2176233,96336.0,96328.0,0.30931842]
[1740189367606,0.2176233,96336.0,96335.0,0.20703704]
[1740189368106,0.2176233,96336.0,96335.0,0.19137499]
[1740189368410,0.2176233,96336.0,96335.0,0.1269269]
[1740189368796,0.2176233,96336.0,96335.0,0.0135469]
[1740189369002,0.2246233,96336.0,96335.0,0.0135469]
[1740189369199,0.2076384,96329.0,96328.0,0.30931842]
[1740189369402,0.5784384,96329.0,96328.0,0.30456406]
[1740189369810,0.6416384,96329.0,96328.0,0.30456406]
[1740189370498,0.6416384,96329.0,96328.0,0.25429406]
[1740189370499,0.6486384,96329.0,96328.0,0.25429406]
[1740189370705,0.2076858,96307.0,96306.0,0.00052]
[1740189370905,0.2076879,96306.0,96305.0,0.0629]
[1740189371211,0.2176879,96306.0,96305.0,0.0629]
[1740189371412,0.2076966,96302.0,96301.0,0.0327]
[1740189371615,0.2176966,96302.0,96301.0,0.0327]
[1740189371809,0.01,96302.0,96300.0,0.1]
[1740189372012,0.2502987,96301.0,96300.0,0.1]
[1740189377303,0.2176987,96301.0,96300.0,0.1]
[1740189377911,0.2076987,96301.0,96300.0,0.1]
[1740189378117,0.2176987,96301.0,96300.0,0.1]
[1740189381420,0.2076987,96301.0,96300.0,0.1]
[1740189386117,0.2408987,96301.0,96300.0,0.1]
[1740189388415,0.2076987,96301.0,96300.0,0.1]
[1740189390019,0.2076987,96301.0,96285.0,0.0519331]
[1740189390020,0.0519404,96274.0,96264.0,0.3608]
[1740189390221,0.2077742,96266.0,96265.0,0.0328]
[1740189390414,0.2077742,96266.0,96265.0,0.3435764]
[1740189391320,0.2077742,96266.0,96265.0,0.3535764]
[1740189391521,0.21912243,96266.0,96265.0,0.3535764]
[1740189392024,0.22112243,96266.0,96265.0,0.3535764]
[1740189392226,0.22112243,96266.0,96265.0,0.1458]
[1740189392417,0.22112243,96266.0,96265.0,0.0428]
[1740189392615,0.22212243,96266.0,96265.0,0.0328]
[1740189392826,0.22212243,96266.0,96265.0,0.2405764]
[1740189393030,0.22212243,96266.0,96265.0,0.0328]
[1740189393325,0.22212243,96266.0,96241.0,0.2597698]
[1740189393326,0.37514823,96266.0,96241.0,0.2597698]
[1740189393525,0.2078347,96242.0,96241.0,0.2597698]
[1740189393723,0.2078347,96242.0,96241.0,0.2697698]
[1740189394515,0.2597795,96245.0,96244.0,0.2078217]
[1740189394715,0.3608,96247.0,96246.0,0.2078174]
[1740189394919,0.5686153,96247.0,96246.0,0.2078174]
[1740189395221,0.3608,96247.0,96246.0,0.2078174]
[1740189396428,0.3628,96247.0,96246.0,0.2078174]
[1740189396734,0.3627252,96247.0,96246.0,0.2078174]
[1740189396923,0.5705405,96247.0,96246.0,0.2078174]
[1740189399324,0.3627252,96247.0,96246.0,0.2178174]
[1740189399532,0.5705405,96247.0,96246.0,0.2178174]
[1740189400932,0.3627252,96247.0,96246.0,0.2178174]
[1740189403625,0.002,96247.0,96246.0,0.2178174]
[1740189405125,0.002,96247.0,96246.0,0.3208574]
[1740189423142,0.3608,96257.0,96256.0,0.2077958]
[1740189423334,0.3608,96257.0,96256.0,0.2177958]
[1740189424340,0.0309,96258.0,96257.0,0.2077937]
[1740189424530,0.0309,96258.0,96257.0,0.2177937]
[1740189430346,0.0115339,96266.0,96257.0,0.2177937]
[1740189430347,0.00015578,96266.0,96265.0,0.2077764]
[1740189430547,0.00015578,96266.0,96265.0,0.2177764]
[1740189430752,0.00015578,96266.0,96265.0,0.2506764]
[1740189430941,0.00015578,96266.0,96265.0,0.2836764]
[1740189431542,0.00315578,96266.0,96265.0,0.2836764]
[1740189436747,0.00315578,96266.0,96265.0,0.53273563]
[1740189437347,0.0109103,96273.0,96272.0,0.2077613]
[1740189437649,0.04281362,96275.0,96274.0,0.207757]
[1740189437955,0.04281362,96275.0,96274.0,0.217757]
[1740189440344,0.04781362,96275.0,96274.0,0.217757]
[1740189441252,0.05181362,96275.0,96274.0,0.217757]
[1740189454056,0.05181362,96275.0,96274.0,0.320677]
[1740189461170,0.05181362,96275.0,96274.0,0.56973623]
[1740189464969,0.05181362,96275.0,96274.0,0.320677]
[1740189471282,0.25956842,96275.0,96274.0,0.320677]
[1740189471683,0.05181362,96275.0,96274.0,0.320677]
[1740189471879,0.25956842,96275.0,96274.0,0.320677]
[1740189472182,0.05181362,96275.0,96274.0,0.320677]
[1740189472381,0.0519392,96274.0,96250.0,0.051952]
[1740189472683,0.6205092,96270.0,96269.0,0.3106856]
[1740189472876,0.6205092,96270.0,96269.0,0.2077656]
[1740189473075,0.4127414,96270.0,96268.0,0.24928489]
[1740189473275,0.2077678,96269.0,96268.0,0.24928489]
[1740189473476,0.2077678,96269.0,96268.0,0.45705479]
[1740189473981,0.2077678,96269.0,96268.0,0.24928489]
[1740189474485,0.2077678,96269.0,96268.0,0.45705479]
[1740189475982,0.2107678,96269.0,96268.0,0.45705479]
[1740189476385,0.2127678,96269.0,96268.0,0.45705479]
[1740189476775,0.2127678,96269.0,96268.0,0.2077699]
[1740189480179,0.005,96269.0,96268.0,0.2077699]
[1740189480384,0.005,96269.0,96268.0,0.2177699]
[1740189480581,0.005,96269.0,96268.0,0.3131699]
[1740189482183,0.005,96269.0,96268.0,0.2825699]
[1740189482388,0.005,96269.0,96268.0,0.2177699]
[1740189498701,0.005,96269.0,96268.0,0.23400908]
[1740189500599,0.005,96269.0,96268.0,0.2177699]
[1740189506701,0.005,96269.0,96268.0,0.23400808]
[1740189507804,0.005,96269.0,96268.0,0.58882762]
[1740189509097,0.0301,96278.0,96277.0,0.2077505]
[1740189509297,0.0301,96278.0,96277.0,0.23398868]
[1740189509694,0.0301,96278.0,96277.0,0.2177505]
[1740189510601,0.0109473,96280.0,96277.0,0.01]
[1740189510800,0.0319,96283.0,96279.0,0.01]
[1740189511105,0.0319,96283.0,96282.0,0.2177397]
[1740189511699,0.00015578,96284.0,96283.0,0.2077376]
[1740189511904,0.00015578,96284.0,96283.0,0.2506376]
[1740189512305,0.00015578,96284.0,96283.0,0.2177376]
[1740189512805,0.01685796,96284.0,96283.0,0.2177376]
[1740189513511,0.02385796,96284.0,96283.0,0.2187376]
[1740189516814,0.02385796,96284.0,96283.0,0.46785579]
[1740189518301,0.02385796,96284.0,96283.0,0.25011819]
[1740189518600,0.23159336,96284.0,96283.0,0.25011819]
[1740189519509,0.26259336,96284.0,96283.0,0.25011819]
[1740189519708,0.26259336,96284.0,96283.0,0.45785579]
[1740189520306,0.27259336,96284.0,96283.0,0.45785579]
[1740189521017,0.27259336,96284.0,96283.0,0.2087376]
[1740189524311,0.26259336,96284.0,96283.0,0.2087376]
[1740189527115,0.62339336,96284.0,96283.0,0.2087376]
[1740189527720,0.62339336,96284.0,96283.0,0.001]
[1740189528824,0.62339336,96284.0,96283.0,0.2087376]
[1740189535215,0.26259336,96284.0,96283.0,0.2087376]
[1740189535517,0.62339336,96284.0,96283.0,0.2087376]
[1740189539022,0.26259336,96284.0,96283.0,0.2087376]